[Event "*** Titled Tuesday Blitz"]
[Site "Chess.com"]
[Date "2020.05.12"]
[Round "1"]
[White "Yashasd1995"]
[Black "freshfoodcompany"]
[Result "1-0"]
[WhiteElo "2577"]
[BlackElo "2243"]
[TimeControl "180+1"]
[EndTime "10:05:58 PDT"]
[Termination "Yashasd1995 won by resignation"]

1. b3 {[%clk 0:03:00.9]} 1... d5 {[%clk 0:02:58.5]} 2. Bb2 {[%clk 0:03:01.8]}
2... c5 {[%clk 0:02:56.7]} 3. e3 {[%clk 0:03:01.2]} 3... Nc6 {[%clk 0:02:55.8]}
4. f4 {[%clk 0:03:01.1]} 4... Nf6 {[%clk 0:02:49.5]} 5. Nf3 {[%clk 0:03:01]}
5... Bg4 {[%clk 0:02:45.5]} 6. Bb5 {[%clk 0:03:01.1]} 6... e6 {[%clk 0:02:44.5]}
7. O-O {[%clk 0:02:59.4]} 7... Be7 {[%clk 0:02:42.4]} 8. Qe1 {[%clk 0:02:59.4]}
8... O-O {[%clk 0:02:41.8]} 9. Bxc6 {[%clk 0:02:58.7]} 9... bxc6 {[%clk
0:02:41.3]} 10. Ne5 {[%clk 0:02:58.4]} 10... Bf5 {[%clk 0:02:33.7]} 11. Nxc6
{[%clk 0:02:57.5]} 11... Qd7 {[%clk 0:02:32.2]} 12. Nxe7+ {[%clk 0:02:52.4]}
12... Qxe7 {[%clk 0:02:31.8]} 13. d3 {[%clk 0:02:44.6]} 13... c4 {[%clk
0:02:25.3]} 14. Ba3 {[%clk 0:02:44]} 14... Qc7 {[%clk 0:02:11.8]} 15. Bxf8
{[%clk 0:02:43.7]} 15... Rxf8 {[%clk 0:01:52.6]} 16. bxc4 {[%clk 0:02:42.6]}
16... dxc4 {[%clk 0:01:48.5]} 17. e4 {[%clk 0:02:42.3]} 17... Qc5+ {[%clk
0:01:46.3]} 18. Qf2 {[%clk 0:02:37.5]} 18... Qxf2+ {[%clk 0:01:38.8]} 19. Rxf2
{[%clk 0:02:38.4]} 19... Bg6 {[%clk 0:01:32.9]} 20. h3 {[%clk 0:02:28.1]} 20...
cxd3 {[%clk 0:01:24.6]} 21. cxd3 {[%clk 0:02:29]} 21... h6 {[%clk 0:01:13.9]}
22. Nd2 {[%clk 0:02:20.2]} 22... Rd8 {[%clk 0:01:10.4]} 23. Rf3 {[%clk
0:02:20.2]} 23... Nd7 {[%clk 0:01:06.3]} 24. f5 {[%clk 0:02:15]} 24... exf5
{[%clk 0:01:02.7]} 25. exf5 {[%clk 0:02:15.9]} 25... Bh7 {[%clk 0:00:55.9]} 26.
Nc4 {[%clk 0:02:15.5]} 26... Nc5 {[%clk 0:00:53.5]} 27. Rd1 {[%clk 0:02:15]}
27... g6 {[%clk 0:00:44.6]} 28. d4 {[%clk 0:02:04.1]} 28... gxf5 {[%clk
0:00:36.7]} 29. Ne3 {[%clk 0:01:57.6]} 29... Ne6 {[%clk 0:00:30.5]} 30. d5
{[%clk 0:01:54.8]} 30... Nc5 {[%clk 0:00:28.9]} 31. Nxf5 {[%clk 0:01:52.7]}
31... Ne4 {[%clk 0:00:25.4]} 32. Nxh6+ {[%clk 0:01:50.9]} 32... Kg7 {[%clk
0:00:25.1]} 33. Nxf7 {[%clk 0:01:49.3]} 33... Rf8 {[%clk 0:00:16.5]} 34. Ne5
{[%clk 0:01:41.3]} 34... Rxf3 {[%clk 0:00:13.1]} 35. Nxf3 {[%clk 0:01:42.2]}
35... Nc3 {[%clk 0:00:12.9]} 36. Rd2 {[%clk 0:01:41]} 36... Ne4 {[%clk
0:00:12.3]} 37. Rd4 {[%clk 0:01:40.6]} 37... Nc3 {[%clk 0:00:09.6]} 38. Kf2
{[%clk 0:01:40.4]} 38... Bf5 {[%clk 0:00:07.7]} 39. g4 {[%clk 0:01:38.9]} 1-0

[Event "*** Titled Tuesday Blitz"]
[Site "Chess.com"]
[Date "2020.05.12"]
[Round "1"]
[White "Redbandit87"]
[Black "ameetghasi100"]
[Result "0-1"]
[WhiteElo "2394"]
[BlackElo "2750"]
[TimeControl "180+1"]
[EndTime "10:05:59 PDT"]
[Termination "ameetghasi100 won by resignation"]

1. d4 {[%clk 0:02:59.7]} 1... Nf6 {[%clk 0:02:55]} 2. Bf4 {[%clk 0:02:57.1]}
2... g6 {[%clk 0:02:55.9]} 3. Nc3 {[%clk 0:02:56.3]} 3... Bg7 {[%clk 0:02:56.5]}
4. Qd2 {[%clk 0:02:56.8]} 4... h6 {[%clk 0:02:55.7]} 5. h4 {[%clk 0:02:56.3]}
5... d6 {[%clk 0:02:45.9]} 6. O-O-O {[%clk 0:02:55.6]} 6... c6 {[%clk
0:02:40.2]} 7. e4 {[%clk 0:02:54.8]} 7... b5 {[%clk 0:02:40.1]} 8. f3 {[%clk
0:02:36.4]} 8... b4 {[%clk 0:02:26]} 9. Na4 {[%clk 0:02:36]} 9... Qa5 {[%clk
0:02:18]} 10. b3 {[%clk 0:02:35.7]} 10... Nbd7 {[%clk 0:02:17.9]} 11. a3 {[%clk
0:02:29.1]} 11... Rb8 {[%clk 0:02:16]} 12. e5 {[%clk 0:02:17.4]} 12... Nd5
{[%clk 0:02:09.5]} 13. exd6 {[%clk 0:02:10.3]} 13... Nxf4 {[%clk 0:02:06.8]} 14.
Qxf4 {[%clk 0:02:10]} 14... bxa3 {[%clk 0:02:07.3]} 15. dxe7 {[%clk 0:01:59.8]}
15... a2 {[%clk 0:02:02.5]} 16. Kb2 {[%clk 0:01:44.4]} 16... Qxa4 {[%clk
0:02:00.9]} 17. Ne2 {[%clk 0:01:30.8]} 17... c5 {[%clk 0:01:41.2]} 18. Qxb8
{[%clk 0:01:10.2]} 18... a1=Q+ {[%clk 0:01:38.6]} 19. Rxa1 {[%clk 0:01:09.1]}
19... Qxa1+ {[%clk 0:01:39.3]} 20. Kxa1 {[%clk 0:01:09.2]} 20... Nxb8 {[%clk
0:01:40]} 21. c3 {[%clk 0:01:05.9]} 21... cxd4 {[%clk 0:01:40.1]} 22. Nxd4
{[%clk 0:01:05.6]} 22... Bxd4 {[%clk 0:01:39.8]} 23. cxd4 {[%clk 0:01:06.5]}
23... Kxe7 {[%clk 0:01:40.2]} 24. Bc4 {[%clk 0:01:02.7]} 24... Be6 {[%clk
0:01:38.4]} 25. d5 {[%clk 0:01:02.7]} 25... Bd7 {[%clk 0:01:38]} 26. Re1+ {[%clk
0:01:03.2]} 26... Kd6 {[%clk 0:01:38.2]} 27. Kb2 {[%clk 0:01:03.4]} 27... a6
{[%clk 0:01:35.7]} 28. Kc3 {[%clk 0:00:58.8]} 28... Rc8 {[%clk 0:01:22.3]} 29.
Kd4 {[%clk 0:00:57.7]} 29... Rc5 {[%clk 0:01:19.2]} 30. f4 {[%clk 0:00:49.5]}
30... h5 {[%clk 0:01:16.2]} 31. g3 {[%clk 0:00:49.2]} 31... a5 {[%clk
0:01:14.7]} 32. Rb1 {[%clk 0:00:43.5]} 32... Bb5 {[%clk 0:01:14.1]} 33. Re1
{[%clk 0:00:39.9]} 33... Na6 {[%clk 0:01:10.4]} 34. f5 {[%clk 0:00:37]} 34...
gxf5 {[%clk 0:01:07.3]} 35. Re5 {[%clk 0:00:36.9]} 35... Bxc4 {[%clk 0:01:06.5]}
36. Rxf5 {[%clk 0:00:25.8]} 36... Rxd5+ {[%clk 0:01:05.3]} 0-1

[Event "*** Titled Tuesday Blitz"]
[Site "Chess.com"]
[Date "2020.05.12"]
[Round "1"]
[White "MasterKroket"]
[Black "pouya21"]
[Result "1-0"]
[WhiteElo "2428"]
[BlackElo "2769"]
[TimeControl "180+1"]
[EndTime "10:06:04 PDT"]
[Termination "MasterKroket won by resignation"]

1. d4 {[%clk 0:03:00.9]} 1... f5 {[%clk 0:02:59.7]} 2. c4 {[%clk 0:02:59.4]}
2... Nf6 {[%clk 0:02:58.1]} 3. Nc3 {[%clk 0:02:59.4]} 3... g6 {[%clk 0:02:57.6]}
4. Nf3 {[%clk 0:02:59.6]} 4... Bg7 {[%clk 0:02:56.2]} 5. g3 {[%clk 0:02:59.6]}
5... d6 {[%clk 0:02:56.5]} 6. Bg2 {[%clk 0:03:00.1]} 6... O-O {[%clk 0:02:57.2]}
7. O-O {[%clk 0:03:00.8]} 7... c6 {[%clk 0:02:57.8]} 8. d5 {[%clk 0:03:01]} 8...
e5 {[%clk 0:02:57.4]} 9. dxe6 {[%clk 0:03:00.9]} 9... Bxe6 {[%clk 0:02:57.5]}
10. b3 {[%clk 0:03:00.7]} 10... Na6 {[%clk 0:02:55.2]} 11. Bb2 {[%clk
0:03:00.4]} 11... Qe7 {[%clk 0:02:53.9]} 12. Ng5 {[%clk 0:02:57.8]} 12... Bd7
{[%clk 0:02:53.6]} 13. Qc2 {[%clk 0:02:47.2]} 13... Rad8 {[%clk 0:02:42.2]} 14.
Rad1 {[%clk 0:02:46.1]} 14... Be8 {[%clk 0:02:24.3]} 15. e4 {[%clk 0:02:20.7]}
15... f4 {[%clk 0:02:17.9]} 16. gxf4 {[%clk 0:01:55.4]} 16... Nh5 {[%clk
0:02:17.6]} 17. Ne2 {[%clk 0:01:45.1]} 17... Bxb2 {[%clk 0:02:13.6]} 18. Qxb2
{[%clk 0:01:42.9]} 18... Nxf4 {[%clk 0:02:12.7]} 19. Nxf4 {[%clk 0:01:34]} 19...
Rxf4 {[%clk 0:02:10.6]} 20. Nh3 {[%clk 0:01:31.5]} 20... Rh4 {[%clk 0:02:10.4]}
21. f3 {[%clk 0:01:22.5]} 21... Bd7 {[%clk 0:02:04.6]} 22. Nf2 {[%clk
0:01:22.7]} 22... Nc5 {[%clk 0:02:03.8]} 23. Rfe1 {[%clk 0:01:17.7]} 23... Rh5
{[%clk 0:01:39.7]} 24. Nd3 {[%clk 0:00:39.3]} 24... Rf8 {[%clk 0:01:20.3]} 25.
Nxc5 {[%clk 0:00:34.3]} 25... dxc5 {[%clk 0:01:21.2]} 26. Qd2 {[%clk 0:00:30.2]}
26... Bh3 {[%clk 0:01:16.3]} 27. Bxh3 {[%clk 0:00:18.1]} 27... Rxh3 {[%clk
0:01:15.3]} 28. f4 {[%clk 0:00:16.1]} 28... Rf3 {[%clk 0:01:11.4]} 29. Rf1
{[%clk 0:00:14.3]} 29... Qxe4 {[%clk 0:01:10.8]} 30. Rxf3 {[%clk 0:00:13.3]}
30... Qxf3 {[%clk 0:01:11.7]} 31. Rf1 {[%clk 0:00:13.8]} 31... Qxf4 {[%clk
0:01:11.2]} 32. Rxf4 {[%clk 0:00:13.4]} 1-0

[Event "*** Titled Tuesday Blitz"]
[Site "Chess.com"]
[Date "2020.05.12"]
[Round "1"]
[White "UmutErdemGunduz"]
[Black "Raja3401"]
[Result "0-1"]
[WhiteElo "2406"]
[BlackElo "2769"]
[TimeControl "180+1"]
[EndTime "10:06:04 PDT"]
[Termination "Raja3401 won by resignation"]

1. e4 {[%clk 0:02:59.9]} 1... c5 {[%clk 0:03:00.3]} 2. Nf3 {[%clk 0:02:59.2]}
2... d6 {[%clk 0:03:01.1]} 3. d4 {[%clk 0:02:58.5]} 3... cxd4 {[%clk 0:03:02]}
4. Nxd4 {[%clk 0:02:58.7]} 4... Nf6 {[%clk 0:03:02.7]} 5. f3 {[%clk 0:02:58.4]}
5... e5 {[%clk 0:03:02.2]} 6. Nb3 {[%clk 0:02:57.5]} 6... d5 {[%clk 0:03:02.5]}
7. Bg5 {[%clk 0:02:57.4]} 7... d4 {[%clk 0:03:01]} 8. Bb5+ {[%clk 0:02:56.9]}
8... Nc6 {[%clk 0:03:00.8]} 9. c3 {[%clk 0:02:57.3]} 9... h6 {[%clk 0:03:01]}
10. Bh4 {[%clk 0:02:56.9]} 10... Qb6 {[%clk 0:03:01.2]} 11. Bxc6+ {[%clk
0:02:42.3]} 11... bxc6 {[%clk 0:03:02.1]} 12. cxd4 {[%clk 0:02:42.8]} 12... Bb4+
{[%clk 0:03:01.7]} 13. Nc3 {[%clk 0:02:42.6]} 13... Ba6 {[%clk 0:03:00.8]} 14.
a3 {[%clk 0:02:11.3]} 14... exd4 {[%clk 0:01:55.2]} 15. axb4 {[%clk 0:01:56]}
15... dxc3 {[%clk 0:01:54]} 16. Bf2 {[%clk 0:01:56.5]} 16... Qxb4 {[%clk
0:01:48.7]} 17. Rxa6 {[%clk 0:01:30.6]} 17... Rd8 {[%clk 0:01:36.8]} 18. Bd4
{[%clk 0:00:13.4]} 18... c2+ {[%clk 0:01:25.7]} 19. Qd2 {[%clk 0:00:13.3]} 19...
Qxb3 {[%clk 0:01:18.8]} 20. O-O {[%clk 0:00:07]} 20... c5 {[%clk 0:01:18.8]} 21.
Qc3 {[%clk 0:00:07.4]} 21... Qxc3 {[%clk 0:01:16.5]} 22. Bxc3 {[%clk 0:00:07.4]}
22... O-O {[%clk 0:01:11.3]} 23. Rxa7 {[%clk 0:00:01.8]} 23... Rd1 {[%clk
0:01:11.1]} 24. Ra1 {[%clk 0:00:02.5]} 24... Rfd8 {[%clk 0:01:10.2]} 25. Rc1
{[%clk 0:00:02.2]} 25... Rxc1 {[%clk 0:01:08.5]} 26. Rxc1 {[%clk 0:00:01.6]}
26... Rd1+ {[%clk 0:01:09.4]} 27. Kf2 {[%clk 0:00:01.6]} 27... Rxc1 {[%clk
0:01:09.6]} 0-1

[Event "*** Titled Tuesday Blitz"]
[Site "Chess.com"]
[Date "2020.05.12"]
[Round "1"]
[White "spidernv"]
[Black "David_Paravyan"]
[Result "0-1"]
[WhiteElo "2452"]
[BlackElo "2908"]
[TimeControl "180+1"]
[EndTime "10:06:06 PDT"]
[Termination "David_Paravyan won by checkmate"]

1. e4 {[%clk 0:02:58.7]} 1... c6 {[%clk 0:02:58.8]} 2. d4 {[%clk 0:02:58.4]}
2... d6 {[%clk 0:02:55.2]} 3. c3 {[%clk 0:02:58.4]} 3... Nf6 {[%clk 0:02:51.2]}
4. Bd3 {[%clk 0:02:57.1]} 4... e5 {[%clk 0:02:50.5]} 5. Ne2 {[%clk 0:02:56.9]}
5... Be7 {[%clk 0:02:46.5]} 6. O-O {[%clk 0:02:56.9]} 6... O-O {[%clk
0:02:46.1]} 7. f4 {[%clk 0:02:57.1]} 7... Nbd7 {[%clk 0:02:39.8]} 8. h3 {[%clk
0:02:57.1]} 8... Re8 {[%clk 0:02:38.9]} 9. Nd2 {[%clk 0:02:57.1]} 9... b5 {[%clk
0:01:54.3]} 10. Nf3 {[%clk 0:02:55.9]} 10... Bf8 {[%clk 0:01:50.6]} 11. Qc2
{[%clk 0:02:52.7]} 11... Bb7 {[%clk 0:01:43.4]} 12. fxe5 {[%clk 0:02:48.7]}
12... dxe5 {[%clk 0:01:43.3]} 13. Bg5 {[%clk 0:02:48.8]} 13... h6 {[%clk
0:01:23.5]} 14. Bxf6 {[%clk 0:02:44.7]} 14... Nxf6 {[%clk 0:01:19.3]} 15. Nxe5
{[%clk 0:02:39.3]} 15... Qb6 {[%clk 0:01:07.7]} 16. Kh1 {[%clk 0:02:34]} 16...
c5 {[%clk 0:01:07.5]} 17. Qb1 {[%clk 0:02:20.4]} 17... Rad8 {[%clk 0:01:05.3]}
18. a4 {[%clk 0:02:18.3]} 18... a6 {[%clk 0:00:54.2]} 19. axb5 {[%clk
0:02:17.6]} 19... axb5 {[%clk 0:00:55.1]} 20. Qa2 {[%clk 0:02:15.8]} 20... c4
{[%clk 0:00:21.2]} 21. Bc2 {[%clk 0:02:15.3]} 21... Ra8 {[%clk 0:00:17.9]} 22.
Qb1 {[%clk 0:02:12.4]} 22... Rxa1 {[%clk 0:00:18.3]} 23. Qxa1 {[%clk 0:02:12.2]}
23... Nxe4 {[%clk 0:00:18.9]} 24. Bxe4 {[%clk 0:02:00.8]} 24... Bxe4 {[%clk
0:00:18.5]} 25. Rxf7 {[%clk 0:02:00]} 25... Rxe5 {[%clk 0:00:13.3]} 26. Rxf8+
{[%clk 0:01:51]} 26... Kxf8 {[%clk 0:00:14.2]} 27. dxe5 {[%clk 0:01:44.4]} 27...
Qf2 {[%clk 0:00:14.3]} 28. Qg1 {[%clk 0:01:29.2]} 28... Qxe2 {[%clk 0:00:14.6]}
29. Qc5+ {[%clk 0:01:29.1]} 29... Kg8 {[%clk 0:00:12.4]} 30. Qg1 {[%clk
0:01:27.3]} 30... Bd5 {[%clk 0:00:07.7]} 31. Kh2 {[%clk 0:01:23.2]} 31... h5
{[%clk 0:00:07.7]} 32. Kg3 {[%clk 0:01:22.4]} 32... Qxe5+ {[%clk 0:00:07.4]} 33.
Kh4 {[%clk 0:01:22.1]} 33... Qf4+ {[%clk 0:00:07.6]} 34. g4 {[%clk 0:01:22]}
34... g5+ {[%clk 0:00:07.8]} 35. Kxh5 {[%clk 0:01:21.6]} 35... Bf7+ {[%clk
0:00:08.5]} 36. Kh6 {[%clk 0:01:21.8]} 36... Qf6# {[%clk 0:00:09.4]} 0-1

[Event "*** Titled Tuesday Blitz"]
[Site "Chess.com"]
[Date "2020.05.12"]
[Round "1"]
[White "Tacticusbd"]
[Black "Sven_Tica"]
[Result "1-0"]
[WhiteElo "2364"]
[BlackElo "2659"]
[TimeControl "180+1"]
[EndTime "10:06:08 PDT"]
[Termination "Tacticusbd won by resignation"]

1. e4 {[%clk 0:03:00.9]} 1... c5 {[%clk 0:03:00.2]} 2. b3 {[%clk 0:02:58.9]}
2... Nf6 {[%clk 0:02:59.1]} 3. e5 {[%clk 0:02:58.3]} 3... Nd5 {[%clk 0:02:59]}
4. Bb2 {[%clk 0:02:59.2]} 4... Nc6 {[%clk 0:02:59.6]} 5. Nf3 {[%clk 0:02:59]}
5... Nc7 {[%clk 0:02:55.7]} 6. g3 {[%clk 0:02:52.9]} 6... Ne6 {[%clk 0:02:54.7]}
7. Bg2 {[%clk 0:02:51.8]} 7... g6 {[%clk 0:02:55.3]} 8. c3 {[%clk 0:02:48.2]}
8... Bg7 {[%clk 0:02:48.3]} 9. d4 {[%clk 0:02:47.7]} 9... cxd4 {[%clk
0:02:48.7]} 10. cxd4 {[%clk 0:02:46.8]} 10... Qa5+ {[%clk 0:02:45.6]} 11. Bc3
{[%clk 0:02:41]} 11... Qd5 {[%clk 0:02:41.9]} 12. O-O {[%clk 0:02:37.4]} 12...
Nc7 {[%clk 0:02:40.4]} 13. Ng5 {[%clk 0:02:20.6]} 13... Qb5 {[%clk 0:02:39.2]}
14. a4 {[%clk 0:02:18.4]} 14... Qb6 {[%clk 0:02:30.7]} 15. Na3 {[%clk
0:02:17.7]} 15... O-O {[%clk 0:02:25]} 16. Nc4 {[%clk 0:02:15]} 16... Qa6 {[%clk
0:02:25]} 17. d5 {[%clk 0:02:14.9]} 17... Nd8 {[%clk 0:02:22.5]} 18. Qd2 {[%clk
0:02:05.9]} 18... Rb8 {[%clk 0:02:11.5]} 19. Rfc1 {[%clk 0:01:56.6]} 19... f6
{[%clk 0:02:06.5]} 20. d6 {[%clk 0:01:48.7]} 20... exd6 {[%clk 0:02:02]} 21.
exd6 {[%clk 0:01:46.3]} 21... Nce6 {[%clk 0:02:00.2]} 22. Nxe6 {[%clk
0:01:45.5]} 22... Nxe6 {[%clk 0:02:00.1]} 23. Ne3 {[%clk 0:01:37.3]} 23... b5
{[%clk 0:01:35.7]} 24. Nd5 {[%clk 0:01:31.8]} 24... bxa4 {[%clk 0:01:31.4]} 25.
Rxa4 {[%clk 0:01:29.9]} 25... Qb5 {[%clk 0:01:31.8]} 26. Rb4 {[%clk 0:01:28.9]}
26... Ba6 {[%clk 0:01:19.3]} 27. Rxb5 {[%clk 0:01:27.4]} 27... Bxb5 {[%clk
0:01:20.2]} 28. Ne7+ {[%clk 0:01:27.3]} 28... Kf7 {[%clk 0:01:20.1]} 29. Bd5
{[%clk 0:01:25.9]} 29... Rb6 {[%clk 0:01:07.3]} 30. Bb4 {[%clk 0:01:20.4]} 30...
Rfb8 {[%clk 0:01:04.3]} 31. Bc5 {[%clk 0:01:16.8]} 31... Ra6 {[%clk 0:01:03.2]}
32. h4 {[%clk 0:01:13.9]} 32... h5 {[%clk 0:01:02]} 33. Re1 {[%clk 0:01:11.2]}
33... f5 {[%clk 0:00:57.6]} 34. Qg5 {[%clk 0:01:08.7]} 34... Bd3 {[%clk
0:00:54.4]} 35. Qxg6+ {[%clk 0:01:08.2]} 35... Kf8 {[%clk 0:00:54.9]} 36. Bxe6
{[%clk 0:01:03.9]} 36... dxe6 {[%clk 0:00:54.9]} 37. d7 {[%clk 0:01:03.4]} 37...
Be4 {[%clk 0:00:48]} 38. Nc8+ {[%clk 0:01:01.7]} 1-0

[Event "*** Titled Tuesday Blitz"]
[Site "Chess.com"]
[Date "2020.05.12"]
[Round "1"]
[White "hedgehog280"]
[Black "SHIVACalypso"]
[Result "1-0"]
[WhiteElo "2620"]
[BlackElo "2299"]
[TimeControl "180+1"]
[EndTime "10:06:10 PDT"]
[Termination "hedgehog280 won on time"]

1. d4 {[%clk 0:02:57.5]} 1... e6 {[%clk 0:02:59.6]} 2. Nf3 {[%clk 0:02:58.4]}
2... Nf6 {[%clk 0:02:59.1]} 3. c4 {[%clk 0:02:59.3]} 3... d5 {[%clk 0:02:57.7]}
4. Nc3 {[%clk 0:02:59.7]} 4... Be7 {[%clk 0:02:56.7]} 5. cxd5 {[%clk 0:02:59.8]}
5... exd5 {[%clk 0:02:53.2]} 6. Bf4 {[%clk 0:03:00.3]} 6... O-O {[%clk
0:02:53.8]} 7. e3 {[%clk 0:03:00.4]} 7... Bf5 {[%clk 0:02:51.1]} 8. Bd3 {[%clk
0:03:00.6]} 8... Bxd3 {[%clk 0:02:46.3]} 9. Qxd3 {[%clk 0:03:01.5]} 9... c6
{[%clk 0:02:46.5]} 10. Rg1 {[%clk 0:02:56.4]} 10... Bd6 {[%clk 0:02:43.1]} 11.
Bxd6 {[%clk 0:02:51.4]} 11... Qxd6 {[%clk 0:02:44]} 12. Ne5 {[%clk 0:02:51]}
12... Nbd7 {[%clk 0:02:41.5]} 13. f4 {[%clk 0:02:51]} 13... c5 {[%clk
0:02:30.8]} 14. g4 {[%clk 0:02:48.1]} 14... cxd4 {[%clk 0:02:29.8]} 15. exd4
{[%clk 0:02:48.5]} 15... Rfe8 {[%clk 0:02:24.2]} 16. O-O-O {[%clk 0:02:45.7]}
16... Rac8 {[%clk 0:02:21.8]} 17. Kb1 {[%clk 0:02:45.2]} 17... Nb6 {[%clk
0:01:44.8]} 18. g5 {[%clk 0:02:42]} 18... Nfd7 {[%clk 0:01:44.1]} 19. Qf5 {[%clk
0:02:35.5]} 19... Nxe5 {[%clk 0:01:36.5]} 20. fxe5 {[%clk 0:02:36.4]} 20... Qe6
{[%clk 0:01:35.4]} 21. Qf3 {[%clk 0:02:32.5]} 21... Rc4 {[%clk 0:01:29.6]} 22.
h4 {[%clk 0:02:26.9]} 22... Rec8 {[%clk 0:01:28.3]} 23. h5 {[%clk 0:02:25.5]}
23... Qc6 {[%clk 0:01:17.8]} 24. g6 {[%clk 0:02:18.8]} 24... fxg6 {[%clk
0:01:06.9]} 25. hxg6 {[%clk 0:02:18.9]} 25... hxg6 {[%clk 0:01:07.5]} 26. Rdf1
{[%clk 0:02:07.4]} 26... Qd7 {[%clk 0:00:57.6]} 27. Rxg6 {[%clk 0:01:58.8]}
27... Rxc3 {[%clk 0:00:42.7]} 28. bxc3 {[%clk 0:01:58.8]} 28... Nc4 {[%clk
0:00:43.1]} 29. Ka1 {[%clk 0:01:41.1]} 29... Na3 {[%clk 0:00:16.8]} 30. Rfg1
{[%clk 0:01:32.3]} 30... Nc2+ {[%clk 0:00:11.5]} 31. Kb2 {[%clk 0:01:32.6]}
31... Qb5+ {[%clk 0:00:11.5]} 32. Kc1 {[%clk 0:01:29.1]} 32... Rc7 {[%clk
0:00:09]} 33. Qg4 {[%clk 0:01:19]} 1-0

[Event "*** Titled Tuesday Blitz"]
[Site "Chess.com"]
[Date "2020.05.12"]
[Round "1"]
[White "HunterBRR"]
[Black "kingnb"]
[Result "0-1"]
[WhiteElo "2028"]
[BlackElo "2489"]
[TimeControl "180+1"]
[EndTime "10:06:12 PDT"]
[Termination "kingnb won on time"]

1. d4 {[%clk 0:03:00.4]} 1... d6 {[%clk 0:02:58.9]} 2. Nf3 {[%clk 0:02:59]} 2...
Bg4 {[%clk 0:02:57.1]} 3. c4 {[%clk 0:02:54.4]} 3... Nd7 {[%clk 0:02:56.1]} 4.
e3 {[%clk 0:02:50.1]} 4... Ngf6 {[%clk 0:02:54.5]} 5. Nc3 {[%clk 0:02:49.1]}
5... e5 {[%clk 0:02:52.1]} 6. Be2 {[%clk 0:02:44.3]} 6... Be7 {[%clk 0:02:49.1]}
7. O-O {[%clk 0:02:41.3]} 7... O-O {[%clk 0:02:48]} 8. dxe5 {[%clk 0:02:27]}
8... dxe5 {[%clk 0:02:45]} 9. b3 {[%clk 0:02:24]} 9... c6 {[%clk 0:02:44.7]} 10.
Bb2 {[%clk 0:02:22.7]} 10... Qc7 {[%clk 0:02:44.3]} 11. h3 {[%clk 0:02:16.8]}
11... Bh5 {[%clk 0:02:43.4]} 12. Qc2 {[%clk 0:02:09.5]} 12... Rad8 {[%clk
0:02:39.6]} 13. Rad1 {[%clk 0:02:03.9]} 13... Rfe8 {[%clk 0:02:39.4]} 14. Rd2
{[%clk 0:01:50.8]} 14... Nc5 {[%clk 0:02:22.2]} 15. Rfd1 {[%clk 0:01:44.9]}
15... Bg6 {[%clk 0:02:22.1]} 16. Qc1 {[%clk 0:01:27.9]} 16... Rxd2 {[%clk
0:02:20.5]} 17. Rxd2 {[%clk 0:01:24.6]} 17... Bf8 {[%clk 0:02:20.7]} 18. Nh4
{[%clk 0:01:16.5]} 18... Be4 {[%clk 0:02:11]} 19. b4 {[%clk 0:00:58.6]} 19...
Ne6 {[%clk 0:02:04]} 20. a3 {[%clk 0:00:37]} 20... h6 {[%clk 0:01:53.6]} 21.
Nxe4 {[%clk 0:00:23.4]} 21... Nxe4 {[%clk 0:01:54.5]} 22. Rd1 {[%clk 0:00:23.1]}
22... a5 {[%clk 0:01:53.9]} 23. Nf3 {[%clk 0:00:11.1]} 23... N6g5 {[%clk
0:01:45.9]} 24. Nxg5 {[%clk 0:00:07.9]} 24... Nxg5 {[%clk 0:01:46.8]} 25. Qc3
{[%clk 0:00:06.3]} 25... Ne4 {[%clk 0:01:41.5]} 26. Qc2 {[%clk 0:00:06.3]} 26...
Nf6 {[%clk 0:01:41.3]} 27. bxa5 {[%clk 0:00:03.7]} 27... Qxa5 {[%clk 0:01:40.6]}
28. Bf3 {[%clk 0:00:02.6]} 28... g6 {[%clk 0:01:30.9]} 29. Rd2 {[%clk
0:00:01.5]} 29... Bxa3 {[%clk 0:01:26]} 0-1

[Event "*** Titled Tuesday Blitz"]
[Site "Chess.com"]
[Date "2020.05.12"]
[Round "1"]
[White "Kislov_Oleg"]
[Black "Blitzstream"]
[Result "0-1"]
[WhiteElo "2340"]
[BlackElo "2659"]
[TimeControl "180+1"]
[EndTime "10:06:15 PDT"]
[Termination "Blitzstream won by resignation"]

1. e4 {[%clk 0:02:58.7]} 1... d5 {[%clk 0:02:56.5]} 2. exd5 {[%clk 0:02:58.4]}
2... Qxd5 {[%clk 0:02:57.4]} 3. Nc3 {[%clk 0:02:58.1]} 3... Qa5 {[%clk
0:02:48.4]} 4. d4 {[%clk 0:02:58.2]} 4... Nf6 {[%clk 0:02:48.7]} 5. Nf3 {[%clk
0:02:55.1]} 5... c6 {[%clk 0:02:48.5]} 6. Bc4 {[%clk 0:02:47.8]} 6... Bf5 {[%clk
0:02:48.6]} 7. Ne5 {[%clk 0:02:45.5]} 7... e6 {[%clk 0:02:48.9]} 8. Bd2 {[%clk
0:02:34.3]} 8... Qb6 {[%clk 0:02:48.1]} 9. O-O {[%clk 0:02:09]} 9... Qxd4 {[%clk
0:02:42.4]} 10. Re1 {[%clk 0:02:07.4]} 10... Nbd7 {[%clk 0:02:39.8]} 11. Nxd7
{[%clk 0:02:00.1]} 11... Qxd7 {[%clk 0:02:31]} 12. Qf3 {[%clk 0:01:52.5]} 12...
Bg4 {[%clk 0:02:25.1]} 13. Qe3 {[%clk 0:01:50.2]} 13... Bd6 {[%clk 0:02:17.1]}
14. Rad1 {[%clk 0:01:46.1]} 14... Bxd1 {[%clk 0:02:16.5]} 15. Rxd1 {[%clk
0:01:45.6]} 15... Qc7 {[%clk 0:02:15.3]} 16. g3 {[%clk 0:01:43.4]} 16... O-O
{[%clk 0:02:15.1]} 17. Ne2 {[%clk 0:01:42.4]} 17... Rad8 {[%clk 0:02:14.5]} 18.
Bc3 {[%clk 0:01:42.5]} 18... Nd5 {[%clk 0:02:13.5]} 19. Bxd5 {[%clk 0:01:35.1]}
19... cxd5 {[%clk 0:02:14.4]} 20. Bxg7 {[%clk 0:01:34.7]} 20... Qxc2 {[%clk
0:01:32.7]} 21. Rd3 {[%clk 0:00:57.8]} 21... Qxd3 {[%clk 0:01:21.5]} 22. Qxd3
{[%clk 0:00:56.9]} 22... Kxg7 {[%clk 0:01:21.8]} 23. Qd4+ {[%clk 0:00:53.5]}
23... f6 {[%clk 0:01:16]} 24. Qg4+ {[%clk 0:00:48.9]} 24... Kf7 {[%clk
0:01:14.5]} 25. Qh5+ {[%clk 0:00:49.2]} 25... Ke7 {[%clk 0:01:13.2]} 26. Nd4
{[%clk 0:00:44.4]} 26... Be5 {[%clk 0:01:02.8]} 27. Nf3 {[%clk 0:00:41.2]} 27...
Bxb2 {[%clk 0:00:59.5]} 28. Qxh7+ {[%clk 0:00:41.9]} 28... Rf7 {[%clk
0:00:59.1]} 29. Qb1 {[%clk 0:00:42.5]} 29... Be5 {[%clk 0:00:54.3]} 30. Qxb7+
{[%clk 0:00:43]} 30... Rd7 {[%clk 0:00:54.5]} 31. Qb4+ {[%clk 0:00:41]} 31...
Bd6 {[%clk 0:00:53]} 32. Qb3 {[%clk 0:00:39.2]} 32... Be5 {[%clk 0:00:52]} 33.
h4 {[%clk 0:00:32]} 33... d4 {[%clk 0:00:47.4]} 34. Qe3 {[%clk 0:00:30.5]} 34...
dxe3 {[%clk 0:00:47.2]} 0-1